fUSD/lending_fUSD_20250123
["ID","MTS","AMOUNT","RATE_DAILY","PERIOD"]
[350093020,1737620603935,-686.99,0.00019299,2]
[350093021,1737620603947,-214.08057621,0.00019299,2]
[350093022,1737620603963,-834.98,0.00019299,2]
[350093023,1737620603975,-500.0,0.00019299,2]
[350093024,1737620603987,-500.0,0.00019299,2]
[350093025,1737620603998,-500.0,0.00019299,2]
[350093026,1737620604009,-500.0,0.00019299,2]
[350093027,1737620604021,-1251.2,0.00019299,2]
[350093028,1737620604032,-500.0,0.00019299,2]
[350093029,1737620604051,-500.0,0.00019299,2]
[350093030,1737620604066,-500.0,0.00019299,2]
[350093031,1737620604077,-500.0,0.00019299,2]
[350093032,1737620604088,-500.0,0.00019299,2]
[350093033,1737620604104,-500.0,0.00019299,2]
[350093034,1737620604115,-500.0,0.00019299,2]
[350093035,1737620604139,-500.0,0.00019299,2]
[350093036,1737620604150,-500.0,0.00019299,2]
[350093037,1737620604162,-500.0,0.00019299,2]
[350093038,1737620604173,-500.0,0.00019299,2]
[350093039,1737620604185,-500.0,0.00019299,2]
[350093040,1737620604197,-500.0,0.00019299,2]
[350093041,1737620604208,-500.0,0.00019299,2]
[350093042,1737620604219,-500.0,0.00019299,2]
[350093043,1737620604230,-500.0,0.00019299,2]
[350093044,1737620604244,-1113.86,0.00019299,2]
[350093045,1737620604255,-500.0,0.00019299,2]
[350093046,1737620604266,-500.0,0.00019299,2]
[350093047,1737620604278,-500.0,0.00019299,2]
[350093048,1737620604289,-547.18,0.00019299,2]
[350093049,1737620604300,-500.0,0.00019299,2]
[350093050,1737620604312,-388.44896427,0.00019299,2]
[350093051,1737620604323,-846.59,0.00019299,2]
[350093052,1737620604335,-150.0,0.00019299,2]
[350093053,1737620604351,-500.0,0.00019299,2]
[350093054,1737620604365,-58401.0,0.00019299,2]
[350093055,1737620604377,-559.64,0.00019299,2]
[350093056,1737620604388,-500.0,0.00019299,2]
[350093057,1737620604399,-500.0,0.00019299,2]
[350093058,1737620604411,-705.6,0.00019299,2]
[350093059,1737620604424,-725.62,0.00019299,2]
[350093060,1737620604435,-538.16,0.00019299,2]
[350093061,1737620604447,-1212.76,0.00019299,2]
[350093062,1737620604459,-615.56,0.00019299,2]
[350093063,1737620604470,-507.98,0.00019299,2]
[350093064,1737620604482,-1540.81,0.00019299,2]
[350093065,1737620604497,-500.0,0.00019299,2]
[350093066,1737620604509,-1493.91,0.00019299,2]
[350093067,1737620604520,-500.0,0.00019299,2]
[350093068,1737620604532,-500.0,0.00019299,2]
[350093069,1737620604543,-926.56,0.00019299,2]
[350093070,1737620604554,-409.715905,0.00019299,2]
[350093071,1737620604565,-500.0,0.00019299,2]
[350093072,1737620604579,-500.0,0.00019299,2]
[350093073,1737620604591,-524.72,0.00019299,2]
[350093074,1737620604612,-677.46,0.00019299,2]
[350093075,1737620604624,-664.88,0.00019299,2]
[350093076,1737620604636,-500.0,0.00019299,2]
[350093077,1737620604647,-1361.42,0.00019299,2]
[350093078,1737620604659,-1030.04982754,0.00019299,2]
[350093079,1737620604668,-111.70017246,0.00019299,2]
[350093080,1737620604680,-388.29982754,0.00019299,2]
[350093081,1737620604689,-762.06017246,0.00019299,2]
[350093082,1737620604702,-731.06,0.00019299,2]
[350093083,1737620604714,-1321.2,0.00019299,2]
[350093084,1737620604725,-724.56592779,0.00019299,2]
[350093085,1737620604735,-1287.50407221,0.000193,2]
[350093086,1737620604747,-546.49592779,0.000193,2]
[350093087,1737620604756,-1017.51407221,0.000193,3]
[350093088,1737620604767,-634.83,0.000193,3]
[350093089,1737620604778,-500.0,0.000193,3]
[350093090,1737620604790,-722.43,0.000193,3]
[350093091,1737620604801,-500.0,0.000193,3]
[350093092,1737620604812,-1627.4,0.000193,3]
[350093093,1737620604823,-624.18,0.000193,3]
[350093094,1737620604835,-784.9,0.000193,3]
[350093095,1737620604846,-802.87,0.000193,3]
[350093096,1737620604857,-500.0,0.000193,3]
[350093097,1737620604869,-1236.47,0.000193,3]
[350093098,1737620604880,-978.86,0.000193,3]
[350093099,1737620604891,-1245.24,0.000193,3]
[350093100,1737620604903,-500.0,0.000193,3]
[350093101,1737620604918,-500.0,0.000193,3]
[350093102,1737620604930,-500.0,0.000193,3]
[350093103,1737620604998,-500.0,0.000193,3]
[350093104,1737620605044,-500.0,0.000193,3]
[350093105,1737620605056,-500.0,0.000193,3]
[350093106,1737620605067,-500.0,0.000193,3]
[350093107,1737620605079,-188.65228109,0.000193,3]
[350093108,1737620605091,-500.0,0.000193,3]
[350093109,1737620605102,-1138.13,0.000193,3]
[350093110,1737620605114,-2080.48,0.000193,3]
[350093111,1737620605125,-500.0,0.000193,3]
[350093112,1737620605141,-867.37,0.000193,3]
[350093113,1737620605158,-2102.39,0.000193,3]
[350093114,1737620605170,-1204.71,0.000193,3]
[350093115,1737620605182,-791.92,0.000193,3]
[350093116,1737620605194,-735.28,0.000193,3]
[350093117,1737620605205,-500.0,0.000193,3]
[350093118,1737620605217,-1745.31,0.000193,3]
[350093119,1737620605229,-500.0,0.000193,3]
[350093120,1737620605240,-3358.12,0.000193,3]
[350093121,1737620605252,-617.61,0.000193,3]
[350093122,1737620605267,-500.0,0.000193,3]
[350093123,1737620605278,-500.0,0.000193,3]
[350093124,1737620605289,-847.72,0.000193,3]
[350093125,1737620605301,-500.0,0.000193,3]
[350093126,1737620605313,-5555.05,0.000193,3]
[350093127,1737620605325,-500.0,0.000193,3]
[350093128,1737620605387,-1326.19,0.000193,3]
[350093129,1737620605444,-500.0,0.000193,3]
[350093130,1737620605455,-500.0,0.000193,3]
[350093131,1737620605467,-500.0,0.000193,3]
[350093132,1737620605479,-500.0,0.000193,3]
[350093133,1737620605494,-622.54,0.000193,3]
[350093134,1737620605506,-500.0,0.000193,3]
[350093135,1737620605518,-618.87,0.000193,3]
[350093136,1737620605530,-942.21,0.000193,3]
[350093137,1737620605542,-500.0,0.000193,3]
[350093138,1737620605574,-500.0,0.000193,3]
[350093139,1737620605628,-1092.08,0.000193,3]
[350093140,1737620605662,-522.59,0.000193,3]
[350093141,1737620605674,-1868.24,0.000193,3]
[350093142,1737620605688,-500.0,0.000193,3]
[350093143,1737620605701,-3737.8,0.000193,3]
[350093144,1737620605713,-676.66,0.000193,3]
[350093145,1737620605725,-615.6,0.000193,3]
[350093146,1737620605736,-862.66,0.000193,3]
[350093147,1737620605748,-634.72,0.000193,3]
[350093148,1737620605760,-499.65957086,0.000193,3]
[350093149,1737620605771,-500.0,0.000193,3]
[350093150,1737620605783,-500.0,0.000193,3]
[350093151,1737620605795,-540.06,0.000193,3]
[350093152,1737620605807,-500.0,0.000193,3]
[350093153,1737620605818,-502.36,0.000193,3]
[350093154,1737620605830,-526.0,0.000193,3]
[350093155,1737620605842,-500.0,0.000193,3]
[350093156,1737620605854,-500.0,0.000193,3]
[350093157,1737620605866,-660.08,0.000193,3]
[350093158,1737620605878,-500.0,0.000193,3]
[350093159,1737620605894,-500.0,0.00018998,2]
[350093160,1737620605906,-500.0,0.000193,3]
[350093161,1737620605927,-500.0,0.000193,3]
[350093162,1737620606181,-500.0,0.000193,3]
[350093163,1737620606212,-500.0,0.000193,3]
[350093164,1737620606224,-591.96,0.000193,3]
[350093165,1737620606235,-563.14,0.000193,3]
[350093166,1737620606246,-500.0,0.000193,3]
[350093167,1737620606261,-610.92,0.00019272,2]
[350093168,1737620606272,-23.95,0.00019272,2]
[350093169,1737620606282,-482.73,0.000193,3]
[350093170,1737620606304,-660.89,0.000193,3]
[350093171,1737620606315,-500.0,0.000193,3]
[350093172,1737620606326,-500.0,0.000193,3]
[350093173,1737620606339,-500.0,0.000193,3]
[350093174,1737620606353,-500.0,0.000193,3]
[350093175,1737620606364,-500.0,0.000193,3]
[350093176,1737620606375,-500.0,0.000193,3]
[350093177,1737620606388,-500.0,0.000193,3]
[350093178,1737620606399,-500.0,0.000193,3]
[350093179,1737620606410,-500.0,0.000193,3]
[350093180,1737620606423,-500.0,0.000193,3]
[350093181,1737620606434,-500.0,0.000193,3]
[350093182,1737620606446,-500.0,0.000193,3]
[350093183,1737620606457,-500.0,0.000193,3]
[350093184,1737620606468,-500.0,0.000193,3]
[350093185,1737620606479,-500.0,0.000193,3]
[350093186,1737620606492,-500.0,0.000193,3]
[350093187,1737620606522,-500.0,0.000193,3]
[350093188,1737620606533,-504.56,0.000193,3]
[350093189,1737620606544,-500.0,0.000193,3]
[350093190,1737620606634,-500.0,0.000193,3]
[350093191,1737620606649,-500.0,0.000193,3]
[350093192,1737620606694,-500.0,0.000193,3]
[350093193,1737620606709,-539.06,0.000193,3]
[350093194,1737620606720,-886.29,0.000193,3]
[350093195,1737620606731,-966.92,0.000193,3]
[350093196,1737620606743,-500.0,0.000193,3]
[350093197,1737620606758,-500.0,0.00019272,2]
[350093198,1737620606769,-1000.0,0.000193,3]
[350093199,1737620606780,-832.14,0.000193,3]
[350093200,1737620606792,-500.0,0.000193,3]
[350093201,1737620606803,-233.89460858,0.000193,3]
[350093202,1737620606821,-500.0,0.000193,3]
[350093203,1737620606834,-500.0,0.000193,3]
[350093204,1737620606845,-1342.47,0.000193,3]
[350093205,1737620606858,-500.0,0.000193,3]
[350093206,1737620606870,-1377.08,0.000193,3]
[350093207,1737620606882,-500.0,0.000193,3]
[350093208,1737620606893,-500.0,0.000193,3]
[350093209,1737620606908,-500.0,0.000193,3]
[350093210,1737620606920,-939.64,0.000193,3]
[350093211,1737620606931,-500.0,0.000193,3]
[350093212,1737620606944,-500.0,0.000193,3]
[350093213,1737620606956,-499.56964928,0.000193,3]
[350093214,1737620606967,-500.0,0.000193,3]
[350093215,1737620606978,-500.0,0.000193,3]
[350093216,1737620606990,-500.0,0.000193,3]
[350093217,1737620607005,-524.7123298,0.000193,3]
[350093218,1737620607016,-500.0,0.000193,3]
[350093219,1737620607032,-150.0,0.00019176,2]
[350093220,1737620607041,-350.0,0.000193,3]
[350093221,1737620607053,-225.69317645,0.000193,3]
[350093222,1737620607069,-150.0,0.0001919,2]
[350093223,1737620607078,-1.12,0.000193,3]
[350093224,1737620607090,-151.12,0.000193,3]
[350093225,1737620607100,-217.46646305,0.000193,3]
[350093226,1737620607116,-150.0,0.00019217,2]
[350093227,1737620607125,-147254.82711086,0.000193,3]
[350093229,1737620743106,-343.68931282,0.00012,2]
[350093231,1737620835094,-152.22652414,0.00011999,2]
[350093232,1737620835116,-89.36025484,0.00011999,2]
[350093233,1737620835149,-178.33597215,0.00011999,2]
[350093234,1737620835173,-552.79672869,0.00012,2]
[350093237,1737620881669,62392.15902676,0.0001,2]
[350093243,1737620950095,-1352.65959995,0.0001,2]
[350093244,1737620951088,-726.66054931,0.0001,2]
[350093245,1737620952098,-22868.59980181,0.0001,2]
[350093246,1737620955345,-337.56064398,0.0001,2]
[350093247,1737620959122,-42603.60426621,0.0001,2]
[350093248,1737620959144,-500.0,0.00011973,2]
[350093249,1737620959164,-7878.42911809,0.00012,2]
[350093250,1737620967076,-2857.37965829,0.00012,2]
[350093251,1737620968094,-37474.52927402,0.00012,2]
[350093263,1737621032024,-300.0,0.00011999,2]
[350093264,1737621032033,-4307.18359168,0.00012,2]
[350093265,1737621032160,-10441.7850705,0.00012,2]
[350093266,1737621032235,-1363.70176898,0.00012,2]
[350093281,1737621038026,-281.09635083,0.00012,2]
[350093284,1737621039976,-150.66,0.00010137,2]
[350093285,1737621039986,-1108.26010333,0.00012,2]
[350093286,1737621040191,-509.96084912,0.00012,2]
[350093287,1737621040246,-1293.1466498,0.00012,2]
[350093288,1737621040257,-6594.82303768,0.00012,2]
[350093289,1737621040353,-307.68738,0.00012,2]
[350093375,1737621042831,-2599.444995,0.00012,2]
[350093376,1737621042885,-4049.1615056,0.00012,2]
[350093377,1737621042962,-419.81652618,0.00012,2]
[350093378,1737621043021,-4221.1200169,0.00012,2]
[350093379,1737621043032,-501.05350463,0.00012,2]
[350093380,1737621043050,-362.03635587,0.00012,2]
[350093388,1737621046810,-0.38286036,0.00012,2]
[350093389,1737621046827,-926.84813968,0.00012,2]
[350093390,1737621046849,-3851.88067642,0.00012,2]
[350093391,1737621046860,-43010.83368077,0.00012,2]
[350093392,1737621047240,-2351.63147196,0.00012,2]
[350093393,1737621047251,-11632.94506281,0.00012,2]
[350093394,1737621047271,-1907.007425,0.00012,2]
[350093395,1737621047298,-784.2996,0.00012,2]
[350093396,1737621047318,-423311.60468594,0.00012,2]
[350093401,1737621707371,-2744.782605,0.00011541,2]
[350093402,1737621707396,-27849.24882315,0.00011599,2]
[350093403,1737621707419,-333.27567064,0.00011699,2]
[350093404,1737621707444,-333.27567063,0.00011752,2]
[350093405,1737621707467,-333.27567063,0.00011805,2]
[350093406,1737621707491,-3569.25789604,0.00011899,2]
[350093407,1737621707516,-150.0,0.00011899,2]
[350093408,1737621707540,-50186.88366391,0.000119,2]
[350093428,1737622033110,-273.72,0.00010137,2]
[350093429,1737622033132,-428.70964776,0.00010523,2]
[350093430,1737622046127,-1100.06035224,0.00010523,2]
[350093431,1737622046149,-300.0,0.00011899,2]
[350093432,1737622046169,-4609.38005603,0.000119,2]
[350093465,1737622158077,-300.0,0.00011526,2]
[350093466,1737622158097,-18371.0,0.00011527,2]
[350093467,1737622158119,-18653.60678949,0.000119,2]
[350093468,1737622158140,-4060.75282674,0.00011924,2]
[350093469,1737622158161,-175.87843106,0.00011924,2]
[350093470,1737622158185,-150.0,0.00011973,2]
[350093471,1737622158207,-10258.20423592,0.00011973,2]
[350093472,1737622158227,-500.0,0.00011973,2]
[350093473,1737622158254,-454.33592269,0.00011973,2]
[350093474,1737622158276,-1069.12473473,0.00011999,2]
[350093475,1737622158296,-150.0,0.00011999,2]
[350093476,1737622158316,-186.32914109,0.00011999,2]
[350093477,1737622158337,-70809.43090677,0.00012,2]
[350093478,1737622168087,-280.26533768,0.00012,2]
[350093479,1737622169100,-540.65190801,0.00012,2]
[350093493,1737622232167,-357.680135,0.00012,2]
[350093494,1737622232317,-1005.00961891,0.00012,2]
[350093495,1737622232409,-69400.0760626,0.00012,2]
[350093496,1737622232420,-1565.51600315,0.00012,2]
[350093576,1737622237905,-539.34332047,0.00012,2]
[350093577,1737622237957,-266.58370359,0.00012,2]
[350093578,1737622237969,-15838.17875957,0.00012,2]
[350093579,1737622238080,-4252.02307385,0.00012,2]
[350093580,1737622238346,-1730.02566665,0.00012,2]
[350093581,1737622238357,-498.208991,0.00012,2]
[350093582,1737622238487,-5874.45349407,0.00012,2]
[350093586,1737622240053,-709.2757705,0.00012,2]
[350093587,1737622240107,-10263.00770572,0.00012,2]
[350093588,1737622240214,-15189.06000256,0.00012,2]
[350093589,1737622240226,-487.46,0.00012,2]
[350093590,1737622240237,-643.88842845,0.00012,2]
[350093591,1737622240268,-1898.39,0.00012,2]
[350093592,1737622240351,-91082.94845491,0.00012,2]
[350093593,1737622240377,-271.99,0.00012,2]
[350093607,1737622242999,-607.54050621,0.00012,2]
[350093617,1737622243105,-317.92,0.00012,2]
[350093618,1737622243159,-572.99321151,0.00012,2]
[350093622,1737622243196,-1311.6373174,0.00012,2]
[350093630,1737622243266,-800.0,0.00012,2]
[350093633,1737622243278,-975.93,0.00012,2]
[350093635,1737622243289,-3712.83647652,0.00012,2]
[350093639,1737622243323,-3056.5695751,0.00012,2]
[350093645,1737622243377,-900.10574579,0.00012,2]
[350093903,1737622245944,-3955.93759599,0.00012,2]
[350093905,1737622245955,-330.49842,0.00012,2]
[350093911,1737622245996,-10220.0,0.00012,2]
[350093923,1737622246102,-5132.745,0.00012,2]
[350093930,1737622246156,-400.0,0.00012,2]
[350094441,1737622334123,164.14,9.793e-05,2]
[350094444,1737622463991,164.85,9.624e-05,2]
[350094452,1737622841174,150.0,0.0001,2]
[350094455,1737623018501,-186.91,0.00016658,30]
[350094456,1737623035389,-152.06057043,0.000116,7]
[350094457,1737623035412,-33800.0,0.00014,10]
[350094458,1737623069393,1508.05,9.144e-05,2]
[350094461,1737623192153,-96998.9113,0.00016338,14]
[350094462,1737623250994,160.0,6e-05,2]
[350094463,1737623274829,-438.07,0.00010137,2]
[350094464,1737623274853,-471.33587479,0.00010748,2]
[350094465,1737623274877,-250.0,0.00010903,2]
[350094466,1737623274902,-562.41917933,0.00010984,2]
[350094467,1737623274926,-188.83,0.00010992,2]
[350094468,1737623274950,-161.64,0.00011048,2]
[350094469,1737623274978,-3813.70494588,0.00011048,2]
[350094471,1737623324304,177.56,0.00016658,30]
[350094472,1737623325006,175.16,8.863e-05,2]
[350094482,1737623432203,-469.1440006,0.00010694,2]
[350094483,1737623432255,-8.5440944,0.00010694,2]
[350094484,1737623432264,-162.1532435,0.00010986,2]
[350094485,1737623432275,-587.54,0.00011078,2]
[350094486,1737623432285,-428.56,0.00011086,2]
[350094487,1737623432294,-155.18,0.00011093,2]
[350094488,1737623432305,-150.0,0.00011184,2]
[350094489,1737623432315,-43.81842885,0.00011188,2]
[350094490,1737623432361,-774.34181465,0.00011188,2]
[350094491,1737623432372,-681.8397565,0.00011188,2]
[350094492,1737623432381,-301.1,0.00011319,2]
[350094493,1737623432390,-1508.05,0.00011408,2]
[350094494,1737623432399,-410.32708265,0.00011613,2]
[350094495,1737623432409,-447.24,0.00011843,2]
[350094496,1737623432418,-305.99,0.00011844,2]
[350094497,1737623432428,-250.0,0.00011864,2]
[350094498,1737623432437,-150.0,0.00011999,2]
[350094499,1737623432446,-87875.35119333,0.00012,2]
[350094500,1737623432461,-498.555002,0.00012,2]
[350094501,1737623432485,-115362.8543758,0.00012,2]
[350094502,1737623432494,-179.72340472,0.00012,2]
[350094503,1737623432503,-43676.14338339,0.00012,2]
[350094504,1737623432512,-1459.0,0.00012,3]
[350094505,1737623432522,-2135.47948,0.00012,2]
[350094506,1737623432531,-1715.4,0.00012008,2]
[350094507,1737623432540,-484.72,0.00012035,2]
[350094508,1737623432550,-703.22,0.00012035,2]
[350094509,1737623432560,-250.0,0.00012056,2]
[350094510,1737623432569,-23900.0,0.00012061,2]
[350094511,1737623432578,-2513.42,0.00012076,2]
[350094512,1737623432588,-1000.0,0.00012157,2]
[350094513,1737623432597,-5558.0,0.000123,5]
[350094514,1737623432607,-171.69,0.00012304,2]
[350094515,1737623432616,-153.26,0.00012329,2]
[350094516,1737623432625,-500.0,0.00012329,2]
[350094517,1737623432635,-748.99210587,0.00012342,2]
[350094518,1737623432644,-155.18,0.0001248,2]
[350094519,1737623432653,-185.97,0.00012576,2]
[350094520,1737623432663,-281.0,0.00012877,2]
[350094521,1737623432672,-2135.47948,0.0001307,2]
[350094522,1737623432681,-255.0,0.00013079,2]
[350094523,1737623432690,-179.19736251,0.00013599,2]
[350094524,1737623432699,-1508.05,0.00013672,2]
[350094525,1737623432710,-1000.0,0.00013677,2]
[350094526,1737623432720,-200.0,0.00013699,2]
[350094527,1737623432729,-7378.63,0.00013699,2]
[350094528,1737623432739,-167.66,0.00013699,2]
[350094529,1737623432749,-155.18,0.00013867,2]
[350094530,1737623432758,-295.0,0.00014255,2]
[350094531,1737623432767,-2135.47949,0.0001432,2]
[350094532,1737623432776,-1098.2877471,0.000149,2]
[350094533,1737623432785,-4120.93921544,0.000149,2]
[350094534,1737623432795,-14463.61283316,0.00015,2]
[350094535,1737623432807,-386.09999985,0.00015,2]
[350094536,1737623432817,-145391.1727663,0.00015,2]
[350094537,1737623432827,-550.0,0.00015,2]
[350094538,1737623432836,-167.66,0.00015068,2]
[350094539,1737623432846,-1000.0,0.00015196,2]
[350094540,1737623432855,-155.18,0.00015253,2]
[350094541,1737623432864,-4120.93921544,0.00015378,2]
[350094542,1737623432873,-428.56,0.0001552,2]
[350094543,1737623432883,-2135.47948,0.0001557,2]
[350094544,1737623432894,-1602.0,0.000156,2]
[350094545,1737623432904,-4120.93921544,0.00015856,2]
[350094546,1737623432913,-337.45332438,0.000159,2]
[350094547,1737623432922,-337.4533243,0.000159,2]
[350094548,1737623432930,-337.4533243,0.000159,2]
[350094549,1737623432939,-337.4533243,0.000159,2]
[350094550,1737623432949,-337.4533243,0.000159,2]
[350094551,1737623432958,-337.4533243,0.000159,2]
[350094552,1737623432967,-337.4533243,0.000159,2]
[350094553,1737623432977,-337.4533243,0.000159,2]
[350094554,1737623432986,-337.4533243,0.000159,2]
[350094555,1737623432996,-337.4533243,0.000159,2]
[350094556,1737623433006,-337.4533243,0.000159,2]
[350094557,1737623433015,-337.4533243,0.000159,2]
[350094558,1737623433024,-1508.05,0.00015936,2]
[350094559,1737623433034,-44210.0,0.0001595,2]
[350094560,1737623433043,-959.73823533,0.00016,2]
[350094561,1737623433053,-231.512756,0.00016,2]
[350094562,1737623433063,-337.4533243,0.00016038,2]
[350094563,1737623433072,-153.26,0.00016096,2]
[350094564,1737623433082,-4120.93921544,0.00016333,2]
[350094565,1737623433091,-337.4533243,0.00016383,2]
[350094566,1737623433101,-176.702192,0.00016438,2]
[350094567,1737623433109,-165.640938,0.00016438,2]
[350094568,1737623433119,-516.49423265,0.00016438,2]
[350094569,1737623433128,-500.0,0.00016438,2]
[350094570,1737623433137,-500.0,0.00016438,2]
[350094571,1737623433148,-517.41636782,0.00016438,2]
[350094572,1737623433158,-500.0,0.00016438,2]
[350094573,1737623433168,-226.08,0.00016438,2]
[350094574,1737623433177,-500.0,0.00016438,2]
[350094575,1737623433187,-500.0,0.00016438,2]
[350094576,1737623433197,-500.0,0.00016438,2]
[350094577,1737623433207,-500.0,0.00016438,2]
[350094578,1737623433217,-500.0,0.00016438,2]
[350094579,1737623433228,-500.0,0.00016438,2]
[350094580,1737623433237,-500.0,0.00016438,2]
[350094581,1737623433247,-500.0,0.00016438,2]
[350094582,1737623433256,-500.0,0.00016438,2]
[350094583,1737623433265,-500.0,0.00016438,2]
[350094584,1737623433275,-500.0,0.00016438,2]
[350094585,1737623433285,-500.0,0.00016438,2]
[350094586,1737623433294,-500.0,0.00016438,2]
[350094587,1737623433303,-500.0,0.00016438,2]
[350094588,1737623433312,-500.0,0.00016438,2]
[350094589,1737623433322,-500.0,0.00016438,2]
[350094590,1737623433332,-500.0,0.00016438,2]
[350094591,1737623433342,-500.0,0.00016438,2]
[350094592,1737623433351,-337.35284997,0.00016438,2]
[350094593,1737623433360,-500.0,0.00016438,2]
[350094594,1737623433369,-500.0,0.00016438,2]
[350094595,1737623433379,-500.0,0.00016438,2]
[350094596,1737623433389,-500.0,0.00016438,2]
[350094597,1737623433398,-500.0,0.00016438,2]
[350094598,1737623433407,-500.0,0.00016438,2]
[350094599,1737623433417,-500.0,0.00016438,2]
[350094600,1737623433426,-159.529244,0.00016438,2]
[350094601,1737623433435,-500.0,0.00016438,2]
[350094602,1737623433444,-433.598303,0.00016438,2]
[350094603,1737623433454,-500.0,0.00016438,2]
[350094604,1737623433463,-500.0,0.00016438,2]
[350094605,1737623433475,-500.0,0.00016438,2]
[350094606,1737623433484,-500.0,0.00016438,2]
[350094607,1737623433493,-500.0,0.00016438,2]
[350094608,1737623433502,-500.0,0.00016438,2]
[350094609,1737623433511,-500.0,0.00016438,2]
[350094610,1737623433520,-500.0,0.00016438,2]
[350094611,1737623433530,-500.0,0.00016438,2]
[350094612,1737623433539,-500.0,0.00016438,2]
[350094613,1737623433549,-509.8840608,0.00016438,2]
[350094614,1737623433564,-174.65043734,0.00016438,2]
[350094615,1737623433574,-500.0,0.00016438,2]
[350094616,1737623433583,-500.0,0.00016438,2]
[350094617,1737623433592,-500.0,0.00016438,2]
[350094618,1737623433602,-500.0,0.00016438,2]
[350094619,1737623433611,-500.0,0.00016438,2]
[350094620,1737623433620,-507.99702394,0.00016438,2]
[350094621,1737623433630,-500.0,0.00016438,2]
[350094622,1737623433639,-500.0,0.00016438,2]
[350094623,1737623433648,-500.0,0.00016438,2]
[350094624,1737623433657,-1273.6,0.00016438,2]
[350094625,1737623433667,-506.67506671,0.00016438,2]
[350094626,1737623433676,-759.09,0.00016438,2]
[350094627,1737623433685,-500.0,0.00016438,2]
[350094628,1737623433695,-500.0,0.00016438,2]
[350094629,1737623433705,-435.796508,0.00016438,2]
[350094630,1737623433714,-500.0,0.00016438,2]
[350094631,1737623433723,-500.0,0.00016438,2]
[350094632,1737623433732,-500.0,0.00016438,2]
[350094633,1737623433741,-500.0,0.00016438,2]
[350094634,1737623433751,-500.0,0.00016438,2]
[350094635,1737623433761,-525.50437458,0.00016438,2]
[350094636,1737623433770,-500.0,0.00016438,2]
[350094637,1737623433779,-500.0,0.00016438,2]
[350094638,1737623433788,-500.0,0.00016438,2]
[350094639,1737623433801,-500.0,0.00016438,2]
[350094640,1737623433812,-500.0,0.00016438,2]
[350094641,1737623433823,-500.0,0.00016438,2]
[350094642,1737623434010,-500.0,0.00016438,2]
[350094643,1737623434020,-500.0,0.00016438,2]
[350094644,1737623434030,-500.0,0.00016438,2]
[350094645,1737623434039,-500.0,0.00016438,2]
[350094646,1737623434048,-500.0,0.00016438,2]
[350094647,1737623434057,-500.0,0.00016438,2]
[350094648,1737623434067,-500.0,0.00016438,2]
[350094649,1737623434077,-500.0,0.00016438,2]
[350094650,1737623434086,-500.0,0.00016438,2]
[350094651,1737623434096,-514.25260461,0.00016438,2]
[350094652,1737623434105,-500.0,0.00016438,2]
[350094653,1737623434115,-506.67563647,0.00016438,2]